bitfinex/quotes_SOLUSD_20251006
["timestamp","ask_amount","ask_price","bid_price","bid_amount"]
[1759764274832,4.23890466,235.91,235.82,0.24]
[1759764275036,4.69709078,235.88,235.83,2.8131406]
[1759764275210,0.66,235.87,235.77,31.16]
[1759764275412,14.83931145,235.86,235.78,2.81564049]
[1759764275606,0.71,235.85,235.79,2.81564049]
[1759764275837,0.71,235.85,235.8,2.81564049]
[1759764276045,14.83931145,235.86,235.77,31.16]
[1759764276253,0.71,235.84,235.78,2.81628889]
[1759764276427,0.71,235.83,235.79,2.81628889]
[1759764276625,0.71,235.82,235.73,0.24]
[1759764276951,0.71,235.82,235.74,33.97610229]
[1759764277325,0.71,235.82,235.75,2.81610229]
[1759764277524,14.84245791,235.81,235.76,2.81610229]
[1759764277838,14.84245791,235.81,235.77,2.81610229]
[1759764278037,15.55245791,235.81,235.78,2.81610229]
[1759764278250,15.55245791,235.81,235.74,31.16]
[1759764278448,14.84245791,235.81,235.75,2.81718502]
[1759764278649,0.71,235.8,235.76,2.81718502]
[1759764278846,0.71,235.8,235.77,2.81718502]
[1759764279050,0.71,235.8,235.74,31.16]
[1759764279222,0.71,235.8,235.75,2.8177165]
[1759764279428,0.71,235.8,235.76,2.8177165]
[1759764279629,4.95106196,235.79,235.77,2.8177165]
[1759764279848,15.55371686,235.79,235.73,31.14]
[1759764280156,15.55371686,235.79,235.74,2.81924478]
[1759764280355,15.55371686,235.79,235.75,2.81924478]
[1759764280652,0.71,235.78,235.76,2.81924478]
[1759764280847,14.84371686,235.79,235.77,2.81924478]
[1759764281040,14.84371686,235.79,235.73,31.14]
[1759764281358,15.55371686,235.79,235.74,2.82075804]
[1759764281524,0.71,235.78,235.75,2.82075804]
[1759764281851,4.24142172,235.77,235.73,31.1]
[1759764282057,4.24142172,235.77,235.74,2.82288187]
[1759764282355,4.24142172,235.77,235.75,2.82288187]
[1759764282540,4.24142172,235.77,235.76,2.82288187]
[1759764283263,4.95142172,235.77,235.76,2.82288187]
[1759764283553,15.55497603,235.77,235.68,20.8]
[1759764283753,0.71,235.76,235.69,2.82484233]
[1759764284055,0.71,235.75,235.7,2.82484233]
[1759764284243,0.71,235.74,235.71,2.82484233]
[1759764284432,0.71,235.74,235.72,2.82484233]
[1759764284632,0.71,235.74,235.73,2.82484233]
[1759764285733,4.95196148,235.74,235.73,2.82484233]
[1759764285955,10.60355431,235.77,235.73,2.82484233]
[1759764286255,21.89863492,236.04,235.68,27.74]
[1759764286256,0.71,235.76,235.74,2.82619868]
[1759764286458,1.93297664,235.81,235.75,2.82619868]
[1759764286752,0.71,235.8,235.69,0.24]
[1759764286962,0.71,235.8,235.7,2.82679705]
[1759764287274,0.71,235.79,235.71,2.82679705]
[1759764287459,0.71,235.79,235.72,2.82679705]
[1759764287650,0.71,235.79,235.73,2.82679705]
[1759764287848,0.71,235.79,235.69,0.24]
[1759764287849,15.53434641,235.78,235.74,2.82679705]
[1759764288038,0.69,235.77,235.69,0.24]
[1759764288233,0.69,235.77,235.7,2.82784129]
[1759764288435,0.69,235.77,235.71,2.82784129]
[1759764288644,0.69,235.77,235.72,2.82784129]
[1759764288835,0.69,235.77,235.73,2.82784129]
[1759764289035,0.69,235.77,235.74,2.82784129]
[1759764289336,14.84434641,235.78,235.75,2.82784129]
[1759764289337,0.69,235.76,235.75,2.82784129]
[1759764289536,4.93160162,235.76,235.75,2.82784129]
[1759764290154,4.93160162,235.76,235.64,4.70420757]
[1759764290155,17.46858233,235.76,235.64,0.24]
[1759764290465,1.93297664,235.75,235.65,2.82869328]
[1759764290674,2.62297664,235.74,235.66,2.82906771]
[1759764290845,2.62297664,235.73,235.67,2.82906771]
[1759764291171,0.69,235.72,235.68,2.82906771]
[1759764291377,0.69,235.71,235.69,2.82906771]
[1759764291669,4.24250137,235.71,235.7,2.82906771]
[1759764292060,4.93250137,235.71,235.7,2.82906771]
[1759764292646,10.6054586,235.73,235.7,2.82906771]
[1759764292647,4.24236696,235.72,235.7,2.82906771]
[1759764292862,0.69,235.76,235.71,2.82823207]
[1759764293066,0.69,235.75,235.72,2.82782932]
[1759764293271,0.69,235.75,235.73,2.82782932]
[1759764293457,0.69,235.75,235.67,20.8]
[1759764293774,4.24196148,235.74,235.68,2.82803872]
[1759764294065,4.24196148,235.74,235.69,2.82803872]
[1759764294244,4.93196148,235.74,235.7,2.82803872]
[1759764294443,15.53686518,235.74,235.71,2.82803872]
[1759764294671,0.69,235.73,235.63,20.8]
[1759764294857,0.69,235.72,235.64,33.80836341]
[1759764295057,0.69,235.72,235.65,2.82836341]
[1759764295260,0.69,235.72,235.66,2.82836341]
[1759764295556,0.69,235.72,235.67,2.82836341]
[1759764295753,15.53820331,235.72,235.68,2.82836341]
[1759764295956,15.53820331,235.72,235.69,2.82836341]
[1759764296158,15.53820331,235.72,235.64,30.98]
[1759764296356,15.53820331,235.72,235.65,2.8278632]
[1759764296568,0.69,235.71,235.66,2.8278632]
[1759764296871,2.62297664,235.7,235.67,2.8278632]
[1759764297167,0.69,235.69,235.61,0.24]
[1759764297368,0.69,235.69,235.62,2.82772091]
[1759764297670,4.24304141,235.68,235.63,2.82772091]
[1759764297966,0.69,235.67,235.64,2.82772091]
[1759764298143,0.69,235.67,235.65,2.82772091]
[1759764298346,0.69,235.67,235.66,2.82772091]
[1759764300168,4.93322145,235.67,235.66,2.82772091]
[1759764300555,0.69,235.67,235.56,30.92]
[1759764300756,0.69,235.66,235.58,10.87647521]
[1759764300977,0.69,235.66,235.6,10.87647521]
[1759764301174,0.69,235.66,235.62,10.87647521]
[1759764301374,0.69,235.65,235.63,2.82657271]
[1759764301571,0.69,235.65,235.57,10.87647521]
[1759764301878,0.69,235.65,235.59,10.87647521]
[1759764302095,4.24376167,235.64,235.61,10.87647521]
[1759764302275,0.69,235.66,235.62,2.82553876]
[1759764302452,0.69,235.65,235.63,2.82463848]
[1759764302657,0.69,235.67,235.58,0.24]
[1759764302857,0.69,235.67,235.59,2.824783]
[1759764303056,4.24292825,235.69,235.61,10.87647521]
[1759764303379,0.69,235.68,235.63,10.87647521]
[1759764303686,0.69,235.67,235.64,2.824783]
[1759764303851,0.69,235.67,235.58,0.24]
[1759764304052,0.69,235.67,235.6,10.87647521]
[1759764304251,0.69,235.67,235.62,10.87647521]
[1759764304486,4.24310862,235.68,235.58,0.24]
[1759764304487,10.60599369,235.72,235.64,10.87647521]
[1759764304663,17.47173145,235.71,235.58,0.24]
[1759764304987,6.86547801,235.71,235.6,10.87647521]
[1759764305282,0.69,235.7,235.62,10.87647521]
[1759764305467,0.69,235.69,235.64,10.87647521]
[1759764305667,0.69,235.68,235.64,10.87647521]
[1759764305858,0.69,235.67,235.59,10.87647521]
[1759764306074,0.69,235.67,235.6,2.82097964]
[1759764306406,0.69,235.69,235.62,10.87647521]
[1759764306585,4.93292407,235.69,235.64,10.87647521]
[1759764306780,0.69,235.68,235.64,10.87647521]
[1759764306995,0.69,235.67,235.6,0.24]
[1759764307299,0.69,235.67,235.62,10.87647521]
[1759764307596,0.69,235.67,235.64,10.87647521]
[1759764307906,0.69,235.67,235.6,0.24]
[1759764308073,0.69,235.72,235.61,2.8193098]
[1759764308281,0.69,235.71,235.63,10.87647521]
[1759764308588,0.69,235.71,235.64,2.8193098]
[1759764308784,0.69,235.73,235.65,2.81854377]
[1759764309006,0.69,235.73,235.67,10.87647521]
[1759764309298,0.69,235.77,235.69,10.87647521]
[1759764309474,0.69,235.77,235.71,10.87647521]
[1759764309976,31.40193891,235.81,235.65,25.71328271]
[1759764309977,0.69,235.8,235.7,11.11647521]
[1759764310174,0.69,235.8,235.71,2.8157367]
[1759764310490,0.69,235.84,235.73,10.87647521]
[1759764310801,0.69,235.84,235.74,3.05519581]
[1759764310978,0.69,235.83,235.76,10.87647521]
[1759764311381,0.69,235.83,235.74,11.11647521]
[1759764311587,0.69,235.83,235.76,10.87647521]
[1759764311795,0.69,235.88,235.8,20.8]
[1759764311996,0.69,235.9,235.82,10.87647521]
[1759764312394,0.69,235.9,235.83,2.81077746]
[1759764312599,0.69,235.9,235.84,13.68725267]
[1759764312905,4.92800644,235.96,235.86,10.87647521]
[1759764313105,4.92800644,235.96,235.88,10.87647521]
[1759764313574,14.83302254,235.96,235.88,10.87647521]
[1759764313780,0.69,235.95,235.88,10.87647521]
[1759764314005,0.69,235.95,235.85,21.04]
[1759764314006,0.69,235.95,235.86,10.87647521]
[1759764314205,4.23836568,235.94,235.88,10.87647521]
[1759764314495,4.23836568,235.94,235.86,10.87647521]
[1759764314672,0.1,235.98,235.88,10.87647521]
[1759764314875,0.1,235.98,235.89,2.80446249]
[1759764315091,0.1,235.98,235.91,10.87647521]
[1759764315291,0.1,235.98,235.9,0.24]
[1759764315502,0.1,235.98,235.9,13.91817758]
[1759764315684,4.33769834,235.98,235.9,11.11647521]
[1759764316015,4.33769834,235.98,235.92,10.87647521]
[1759764316016,0.1,235.98,235.92,10.87647521]
[1759764316309,0.1,235.98,235.93,0.24]
[1759764316474,0.1,235.98,235.94,11.11647521]
[1759764316682,0.1,235.98,235.94,21.04]
[1759764316874,0.1,235.98,235.95,0.24]
[1759764317075,0.1,235.98,235.94,20.8]
[1759764317279,0.1,235.98,235.95,0.24]
[1759764317496,0.1,235.98,235.95,10.87647521]
[1759764317698,4.3376856,235.98,235.95,10.87647521]
[1759764317892,0.66,235.97,235.91,30.88]
[1759764318200,0.66,235.97,235.92,10.87647521]
[1759764318201,4.23800644,235.96,235.92,10.87647521]
[1759764319596,4.23800644,235.96,235.8,8.945032]
[1759764319597,14.83302254,235.96,235.79,25.50420757]
[1759764319896,4.69192295,235.93,235.8,13.91275963]
[1759764320113,14.83553746,235.92,235.82,10.87647521]
[1759764320285,0.66,235.91,235.84,10.87647521]
[1759764320486,4.69192295,235.88,235.86,10.87647521]
[1759764320713,5.35192295,235.88,235.8,10.87647521]
[1759764320875,5.35192295,235.88,235.82,10.87647521]
[1759764321081,5.35192295,235.88,235.83,2.79772595]
[1759764321286,5.35192295,235.88,235.8,10.87647521]
[1759764321505,15.49553746,235.92,235.82,10.87647521]
[1759764321718,4.69192295,235.91,235.83,3.03611743]
[1759764321900,15.49553746,235.92,235.83,3.03611743]
[1759764322095,4.69192295,235.91,235.83,3.03611743]
[1759764322412,14.83679524,235.9,235.83,3.03611743]
[1759764322614,4.69192295,235.89,235.8,0.24]
[1759764322814,0.66,235.89,235.8,13.90910988]
[1759764323114,5.35192295,235.89,235.82,10.87647521]
[1759764323317,5.35192295,235.89,235.8,11.11647521]
[1759764323515,5.35192295,235.89,235.82,10.87647521]
[1759764323887,4.69192295,235.89,235.8,10.87647521]
[1759764324099,4.69192295,235.87,235.82,10.87647521]
[1759764324319,15.49931145,235.86,235.82,10.87647521]
[1759764324497,0.66,235.85,235.82,10.87647521]
[1759764324699,14.83931145,235.86,235.8,10.87647521]
[1759764325698,14.83931145,235.86,235.8,11.11647521]
[1759764326302,10.59950818,235.86,235.8,11.11647521]
[1759764326504,10.59950818,235.86,235.8,10.87647521]
[1759764326798,0.66,235.85,235.8,10.87647521]
[1759764326990,5.35192295,235.84,235.73,0.24]
[1759764327217,5.35192295,235.84,235.74,10.87647521]
[1759764327414,4.69192295,235.82,235.74,41.73647521]
[1759764328296,14.84245791,235.81,235.74,41.73647521]
[1759764328499,15.50245791,235.81,235.74,41.73647521]
[1759764328731,4.90070226,235.81,235.74,41.73647521]
[1759764328921,4.24047678,235.83,235.75,3.03548692]
[1759764329124,4.24007454,235.85,235.77,10.87647521]
[1759764329329,4.23978766,235.87,235.79,10.87647521]
[1759764329621,4.23978766,235.87,235.81,10.87647521]
[1759764330312,4.23926406,235.89,235.81,10.87647521]
[1759764331124,14.83742421,235.89,235.81,10.87647521]
[1759764331327,15.49742421,235.89,235.81,10.87647521]
[1759764333924,15.49742421,235.89,235.82,30.86]
[1759764334230,14.83742421,235.89,235.82,31.1]
[1759764334733,4.23926406,235.89,235.82,31.1]
[1759764334912,4.23926406,235.89,235.83,10.87647521]
[1759764335115,4.23926406,235.89,235.83,11.11647521]
[1759764335605,4.23890466,235.91,235.83,11.11647521]
[1759764336126,0.72,235.94,235.87,10.87647521]
[1759764336323,0.72,235.94,235.89,10.87647521]
[1759764336630,0.72,235.93,235.89,10.87647521]
[1759764336837,0.72,235.92,235.89,10.87647521]
[1759764337024,0.72,235.91,235.89,10.87647521]
[1759764337229,0.72,235.93,235.89,10.87647521]
[1759764337414,0.72,235.92,235.89,10.87647521]
[1759764338042,4.23890466,235.91,235.8,20.8]
[1759764338211,0.72,235.9,235.85,10.87647521]
[1759764338531,4.23890466,235.91,235.85,41.71647521]
[1759764338532,0.72,235.89,235.85,41.71647521]
[1759764338717,7.3753429,235.9,235.85,41.71647521]
[1759764339107,8.0953429,235.9,235.85,41.71647521]
[1759764339306,14.83616632,235.91,235.85,41.95647521]
[1759764339846,4.23890466,235.91,235.85,41.71647521]
[1759764340442,4.23890466,235.91,235.87,10.87647521]
[1759764341118,4.95890466,235.91,235.84,0.24]
[1759764341316,4.95890466,235.91,235.86,10.87647521]
[1759764341637,4.23890466,235.91,235.86,10.87647521]
[1759764342013,4.95890466,235.91,235.86,10.87647521]
[1759764342320,4.23868952,235.93,235.87,0.24]
[1759764342532,4.23868952,235.93,235.86,10.87647521]
[1759764342832,0.72,235.92,235.88,10.87647521]
[1759764343323,0.72,235.91,235.88,10.87647521]
[1759764343925,0.72,235.91,235.88,41.71647521]
[1759764344314,4.23908435,235.9,235.88,41.71647521]
[1759764346332,4.23908435,235.9,235.85,0.24]
[1759764346333,0.72,235.9,235.82,4.2405186]
[1759764346524,14.83616632,235.91,235.83,44.74211337]
[1759764346724,14.83616632,235.91,235.84,2.78563816]
[1759764346924,14.83616632,235.91,235.86,10.87647521]
[1759764347241,4.23890466,235.91,235.88,10.87647521]
[1759764347544,4.95890466,235.91,235.89,30.84]
[1759764347918,4.23890466,235.91,235.89,30.84]
[1759764348140,4.89890466,235.91,235.89,30.84]
[1759764348547,15.49430316,235.94,235.89,30.84]
[1759764348726,0.66,235.93,235.89,30.84]
[1759764348927,14.83430316,235.94,235.89,30.84]
[1759764349128,0.66,235.93,235.89,30.84]
[1759764349325,14.83430316,235.94,235.89,30.84]
[1759764349646,4.23872499,235.92,235.89,30.84]
[1759764349841,15.49553746,235.92,235.89,30.84]
[1759764350023,14.83553746,235.92,235.89,30.84]
[1759764350224,14.83553746,235.92,235.9,10.87647521]
[1759764350838,15.49553746,235.92,235.89,30.84]
[1759764351034,0.66,235.91,235.9,2.79453759]
[1759764351453,14.83553746,235.92,235.9,2.79453759]
[1759764351633,15.49553746,235.92,235.89,30.84]
[1759764351835,15.49553746,235.92,235.9,2.79736487]
[1759764352154,15.49553746,235.92,235.89,30.84]
[1759764352350,15.49553746,235.92,235.9,2.7972585]
[1759764352552,15.49553746,235.92,235.91,2.7972585]
[1759764356438,4.23872499,235.92,235.91,2.7972585]
[1759764356668,4.23872499,235.92,235.91,2.81192568]
[1759764357454,10.59565951,235.95,235.91,2.81192568]
[1759764357752,10.59565951,235.95,235.92,2.81192568]
[1759764357952,10.59565951,235.95,235.93,2.81192568]
[1759764358166,4.23800644,235.96,235.94,2.81192568]
[1759764358453,0.66,235.97,235.92,30.82]
[1759764358454,4.23791182,235.97,235.95,2.81192568]
[1759764358630,4.23791182,235.97,235.96,2.81192568]
[1759764358835,4.33768524,235.98,235.96,2.81192568]
[1759764359141,4.33768524,235.98,235.97,2.81192568]
[1759764359338,4.99768524,235.98,235.97,2.81192568]
[1759764359535,15.59180338,235.98,235.92,30.82]
[1759764359741,3.01662049,235.96,235.93,2.81231378]
[1759764360060,0.66,235.95,235.94,2.81231378]
[1759764360446,0.66,235.95,235.87,10.87647521]
[1759764360647,3.01662049,235.92,235.88,2.81158818]
[1759764360845,3.01662049,235.92,235.87,25.03647521]
[1759764360846,0.66,235.91,235.89,2.81158818]
[1759764361061,0.66,235.91,235.9,2.81158818]
[1759764361361,3.01662049,235.92,235.9,2.81158818]
[1759764361657,4.23890466,235.91,235.87,25.03647521]
[1759764361864,4.23869532,235.93,235.88,2.81249058]
[1759764362042,4.89869532,235.93,235.89,2.81249058]
[1759764362381,0.66,235.92,235.9,2.81249058]
[1759764362562,14.83505864,235.93,235.91,2.81249058]
[1759764362748,3.01662049,235.92,235.8,0.24]
[1759764363059,3.01662049,235.89,235.82,10.87647521]
[1759764363242,0.66,235.88,235.82,10.87647521]
[1759764363444,4.23962352,235.87,235.82,10.87647521]
[1759764363646,4.89962352,235.87,235.82,10.87647521]
[1759764363847,0.66,235.86,235.82,10.87647521]
[1759764364439,4.23944309,235.89,235.83,0.24]
[1759764364658,0.66,235.93,235.83,0.24]
[1759764365249,14.83239394,235.97,235.83,0.24]
[1759764365473,4.23818605,235.95,235.86,15.11627848]
[1759764365638,0.66,235.94,235.88,10.87647521]
[1759764366987,0.66,235.93,235.85,10.87647521]
[1759764367283,0.66,235.92,235.87,30.82]
[1759764367479,0.66,235.91,235.85,10.87647521]
[1759764367789,0.66,235.9,235.85,10.87647521]
[1759764368080,14.83490865,235.93,235.85,10.87647521]
[1759764368081,0.66,235.89,235.85,10.87647521]
[1759764368270,0.66,235.88,235.8,0.24]
[1759764368471,0.66,235.88,235.82,10.87647521]
[1759764369580,4.23962352,235.87,235.82,10.87647521]
[1759764370155,4.23935162,235.89,235.83,0.24]
[1759764370361,4.89834885,235.95,235.86,10.87647521]
[1759764370684,4.23834885,235.95,235.88,10.87647521]
[1759764370865,4.23834885,235.95,235.89,0.24]
[1759764371673,4.23800644,235.96,235.89,0.24]
[1759764371881,4.23800644,235.96,235.88,10.87647521]
[1759764372458,4.23800644,235.96,235.88,15.35590571]
[1759764373078,4.23800644,235.96,235.88,11.11647521]
[1759764373461,4.23800644,235.96,235.88,15.35590864]
[1759764374158,4.23800644,235.96,235.88,11.11647521]
[1759764374786,4.23800644,235.96,235.89,2.81532081]
[1759764374956,4.23800644,235.96,235.91,10.87647521]
[1759764375158,4.89800644,235.96,235.92,2.81532081]
[1759764375483,4.89800644,235.96,235.93,2.81532081]
[1759764375776,4.89800644,235.96,235.94,2.81532081]
[1759764375968,4.89800644,235.96,235.95,2.81532081]
[1759764376784,4.23800644,235.96,235.95,2.81532081]
[1759764378172,4.89800644,235.96,235.95,2.81532081]
[1759764378607,4.23800644,235.96,235.95,2.81532081]
[1759764378883,4.33766463,235.98,235.95,2.81532081]
[1759764379194,4.33766463,235.98,235.96,2.81532081]
[1759764379369,0.1,235.98,235.97,2.81532081]
[1759764380676,0.1,235.98,235.97,13.69179602]
[1759764381593,0.1,235.98,235.97,44.49179602]
[1759764382270,0.76,235.98,235.97,44.49179602]
[1759764382494,0.76,235.98,235.97,41.67647521]
[1759764382793,0.76,235.98,235.85,25.90350523]
[1759764382794,15.59176539,235.98,235.93,10.87647521]
[1759764382965,15.59176539,235.98,235.94,2.81097626]
[1759764382966,0.66,235.97,235.94,2.81097626]
[1759764383162,0.66,235.96,235.95,2.81097626]
[1759764384875,4.89800644,235.96,235.95,2.81097626]
[1759764386470,4.23800644,235.96,235.95,2.81097626]
[1759764386898,0.66,235.96,235.95,2.81097626]
[1759764387077,4.89800644,235.96,235.95,2.81097626]
[1759764387410,0.66,235.96,235.95,2.81097626]
[1759764388295,4.89800644,235.96,235.95,2.81097626]
[1759764388905,0.66,235.96,235.95,2.81097626]
[1759764389076,0.1,235.98,235.95,2.81097626]
[1759764389400,4.23782829,235.97,235.96,2.81097626]
[1759764390183,4.99765814,235.98,235.96,2.81097626]
[1759764390384,4.33765814,235.98,235.97,2.81097626]
[1759764390592,4.99765814,235.98,235.97,2.81097626]
[1759764390883,4.33765814,235.98,235.97,2.81097626]
[1759764391083,0.1,235.98,235.97,2.81097626]
[1759764392481,0.1,235.98,235.97,13.68745147]
[1759764392788,0.1,235.98,235.97,2.81097626]
[1759764392998,0.1,235.98,235.97,33.59097626]
[1759764397810,0.1,235.98,235.97,33.57980208]
[1759764401000,4.33764725,235.98,235.97,33.57980208]
[1759764401188,0.1,235.98,235.97,33.57980208]
[1759764405192,0.1,235.98,235.97,30.78]
[1759764405393,0.1,235.98,235.97,33.57962633]
[1759764406393,0.1,235.98,235.93,4.47843612]
[1759764406394,6.94724751,235.98,235.87,10.87647521]
[1759764406694,1.92960026,235.93,235.88,33.56056557]
[1759764406894,0.68,235.92,235.89,2.80056557]
[1759764407114,0.68,235.92,235.9,2.80056557]
[1759764407294,0.68,235.92,235.91,2.80056557]
[1759764407498,6.84813649,235.94,235.91,2.80056557]
[1759764407698,0.68,235.94,235.92,2.80056557]
[1759764407922,0.68,235.94,235.93,2.80056557]
[1759764408115,4.91836568,235.94,235.93,2.80056557]
[1759764408297,4.23836568,235.94,235.93,2.80056557]
[1759764408813,4.90836568,235.94,235.93,2.80056557]
[1759764410188,6.83796594,235.94,235.93,2.80056557]
[1759764411118,0.1,235.98,235.93,2.80056557]
[1759764411119,4.23808511,235.96,235.93,2.80056557]
[1759764411302,4.90808511,235.96,235.94,2.80056557]
[1759764411501,4.23808511,235.96,235.95,2.80056557]
[1759764411900,6.93742187,235.98,235.95,2.80056557]
[1759764412103,6.93742187,235.98,235.91,30.76]
[1759764412104,0.67,235.97,235.96,2.80056557]
[1759764412902,2.59960026,235.97,235.96,2.80056557]
[1759764413099,6.8374271,235.97,235.96,2.80056557]
[1759764414008,4.90782684,235.97,235.96,2.80056557]
[1759764414209,6.8374271,235.97,235.96,2.80056557]
[1759764415509,4.90782684,235.97,235.96,2.80056557]
[1759764415815,6.8374271,235.97,235.96,2.80056557]
[1759764416020,6.8374271,235.97,235.89,30.74]
[1759764416218,6.8374271,235.97,235.9,2.80896904]
[1759764416219,2.59960026,235.96,235.9,2.80896904]
[1759764416424,2.59960026,235.96,235.91,2.80896904]
[1759764416604,0.67,235.95,235.92,2.80896904]
[1759764416806,0.67,235.95,235.93,2.80896904]
[1759764417118,0.67,235.95,235.94,2.80896904]
[1759764417624,4.90818605,235.95,235.94,2.80896904]
[1759764418006,4.23818605,235.95,235.94,2.80896904]
[1759764418206,4.90818605,235.95,235.94,2.80896904]
[1759764418516,0.1,235.98,235.94,2.80896904]
[1759764418517,0.1,235.98,235.94,33.78896904]
[1759764418826,4.33766173,235.98,235.95,2.80896904]
[1759764419017,4.33766173,235.98,235.96,2.80896904]
[1759764419214,4.33766173,235.98,235.97,2.80896904]
[1759764419807,0.1,235.98,235.97,2.80896904]
[1759764420600,4.33764725,235.98,235.97,2.80896904]
[1759764420806,5.00764725,235.98,235.97,2.80896904]
[1759764421107,4.33764725,235.98,235.97,2.80896904]
[1759764421502,5.00764725,235.98,235.97,2.80896904]
[1759764421701,0.1,235.98,235.97,2.80896904]
[1759764422005,4.33764725,235.98,235.97,2.80896904]
[1759764422200,0.1,235.98,235.97,2.80896904]
[1759764424018,4.33764725,235.98,235.97,2.80896904]
[1759764424335,5.00764725,235.98,235.97,2.80896904]
[1759764425038,4.33764725,235.98,235.97,2.80896904]
[1759764425403,5.00764725,235.98,235.97,2.80896904]
[1759764425610,6.93724751,235.98,235.97,2.80896904]
[1759764426413,17.53136565,235.98,235.91,30.72]
[1759764426620,1.92960026,235.96,235.92,2.80745178]
[1759764426929,0.67,235.96,235.93,2.80745178]
[1759764427233,5.00764725,235.98,235.94,2.80745178]
[1759764427406,5.00764725,235.98,235.95,2.80745178]
[1759764427601,0.1,235.98,235.96,2.80745178]
[1759764427805,0.1,235.98,235.97,2.80745178]
[1759764428411,4.33764725,235.98,235.97,2.80745178]
[1759764429444,5.00764725,235.98,235.97,2.80745178]
[1759764429645,0.1,235.98,235.97,2.80745178]
[1759764429949,4.33764725,235.98,235.97,2.80745178]
[1759764430303,0.1,235.98,235.97,2.80745178]
[1759764430720,4.33764725,235.98,235.97,2.80745178]
[1759764430924,5.00764725,235.98,235.97,2.80745178]
[1759764431134,0.1,235.98,235.97,2.80745178]
[1759764432142,17.53136565,235.98,235.87,0.24]
[1759764432308,1.92960026,235.95,235.88,33.52749568]
[1759764432512,1.92960026,235.95,235.89,2.80749568]
[1759764432716,0.67,235.94,235.9,2.80749568]
[1759764433036,0.67,235.93,235.91,2.80749568]
[1759764433234,0.67,235.93,235.92,2.80749568]
[1759764433531,4.90854533,235.93,235.92,2.80749568]
[1759764433717,4.33779671,235.98,235.92,2.80749568]
[1759764433918,5.00779671,235.98,235.93,2.80749568]
[1759764434126,5.00779671,235.98,235.9,0.24]
[1759764434127,0.67,235.97,235.94,2.80749568]
[1759764434431,0.67,235.96,235.95,2.80749568]
[1759764435239,5.00779671,235.98,235.95,2.80749568]
[1759764435411,0.67,235.97,235.96,2.80749568]
[1759764435609,4.90782684,235.97,235.96,2.80749568]
[1759764436248,4.33765898,235.98,235.96,2.80749568]
[1759764436537,0.67,235.97,235.89,10.87647521]
[1759764436722,0.67,235.97,235.9,2.80562799]
[1759764436923,0.67,235.97,235.91,2.80562799]
[1759764437124,0.67,235.96,235.92,2.80562799]
[1759764437334,0.67,235.95,235.93,2.80562799]
[1759764437531,1.92960026,235.97,235.94,2.80562799]
[1759764437728,14.93177712,235.98,235.88,30.72]
[1759764437729,4.23800644,235.96,235.95,2.80562799]
[1759764438136,4.89800644,235.96,235.95,2.80562799]
[1759764438848,4.23782774,235.97,235.95,2.80562799]
[1759764439161,4.23782774,235.97,235.96,2.80562799]
[1759764439353,4.33767384,235.98,235.96,2.80562799]
[1759764439557,0.1,235.98,235.97,2.80562799]
[1759764440244,4.99764725,235.98,235.97,2.80562799]
[1759764441030,4.33764725,235.98,235.97,2.80562799]
[1759764441223,0.1,235.98,235.97,2.80562799]
[1759764441423,4.33764725,235.98,235.97,2.80562799]
[1759764441842,0.1,235.98,235.97,2.80562799]
[1759764443265,4.33764725,235.98,235.97,2.80562799]
[1759764443424,4.99764725,235.98,235.97,2.80562799]
[1759764443619,17.52136565,235.98,235.9,30.7]
[1759764443925,4.33764725,235.98,235.91,7.28518788]
[1759764444252,4.33764725,235.98,235.92,3.04629048]
[1759764444434,4.33764725,235.98,235.93,2.80629048]
[1759764444631,4.33764725,235.98,235.94,2.80629048]
[1759764444959,0.66,235.97,235.95,2.80629048]
[1759764445146,0.66,235.97,235.96,2.80629048]
[1759764445732,4.89782684,235.97,235.96,2.80629048]
[1759764445934,6.8274271,235.97,235.96,2.80629048]
[1759764446833,4.89782684,235.97,235.96,2.80629048]
[1759764448730,6.8274271,235.97,235.96,2.80629048]
[1759764451048,7.91385638,235.97,235.96,2.80629048]
[1759764452233,4.23782684,235.97,235.96,2.80629048]
[1759764452750,7.91385638,235.97,235.96,2.80629048]
[1759764454551,4.89782684,235.97,235.96,2.80629048]
[1759764454734,7.91385638,235.97,235.96,2.80629048]